[Event "46th GRE-chT Premier 2018"]
[Site "Rio Achaia"]
[Date "2018.07.12"]
[Round "4"]
[White "Zimina, Olga"]
[Black "Antova, Gabriela"]
[Result "1/2-1/2"]
[ECO "A14"]
[WhiteElo "2411"]
[BlackElo "2301"]
[Annotator "NA"]
[PlyCount "120"]
[EventDate "2018.07.10"]
[EventType "team-tourn"]
[EventCountry "GRE"]
[SourceTitle "playchess.com"]
[Source "ChessBase"]
[SourceQuality "1"]
[TimeControl "40/5400+30:1800+30"]

1. Nf3 {[%emt 0:00:00]} d5 {[%emt 0:00:00]} 2. c4 {[%emt 0:00:09]} e6 {[%emt 0:00:00]} 3. g3 {[%emt 0:00:07]} Nf6 {[%emt 0:00:00]} 4. Bg2 {[%emt 0:00:04]} Be7 {[%emt 0:00:10]} 5. O-O {[%emt 0:00:06]} O-O {[%emt 0:00:11]} 6. d4 {[%emt 0:00:09]} dxc4 {[%emt 0:00:23]} 7. Qc2 {[%emt 0:00:04]} b5 {[%emt 0:00:35]} 8. a4 {[%emt 0:02:24]} b4 {[%emt 0:00:13]} 9. Qxc4 {[%emt 0:14:02]} Ba6 {[%emt 0:00:38]} 10. Qc2 {[%emt 0:00:04]} Nbd7 {[%emt 0:00:24]} 11. Ne5 {[%emt 0:07:08]} Nxe5 {[%emt 0:00:49]} 12. dxe5 {[%emt 0:11:23]} Nd5 {[%emt 0:00:32]} 13. Rd1 {[%emt 0:00:09]} Qc8 {[%emt 0:00:10]} 14. Be4 {[%emt 0:19:29]} h6 {[%emt 0:00:25]} 15. Bd3 {[%emt 0:01:26]} Bxd3 {[%emt 0:17:34]} 16. Rxd3 {[%emt 0:03:37]} c5 {[%emt 0:06:42]} 17. b3 {[%emt 0:00:33]} Rd8 {[%emt 0:10:44]} 18. Bb2 {[%emt 0:00:32]} Qc6 {[%emt 0:01:39]} 19. Nd2 {[%emt 0:01:05]} h5 {[%emt 0:03:25]} 20. Nc4 {[%emt 0:03:42]} Nb6 {[%emt 0:06:41]} 21. Rad1 {[%emt 0:02:37]} Rxd3 {[%emt 0:02:00]} 22. Rxd3 {[%emt 0:00:22]} Rd8 {[%emt 0:02:52]} 23. h4 {[%emt 0:06:49]} Rxd3 {[%emt 0:12:49]} 24. exd3 {[%emt 0:03:21]} Nd7 {[%emt 0:04:22]} 25. Qe2 {[%emt 0:00:23]} g6 {[%emt 0:00:42]} 26. Nd2 {[%emt 0:03:15]} Qd5 {[%emt 0:09:00]} 27. Qe4 {[%emt 0:00:13]} Kf8 {[%emt 0:01:42]} 28. Kg2 {[%emt 0:00:40]} Nb8 {[%emt 0:01:44]} 29. Kf3 {[%emt 0:02:28]} Nc6 {[%emt 0:02:44]} 30. Nc4 {[%emt 0:00:03]} Bd8 {[%emt 0:05:19]} 31. Ke3 {[%emt 0:07:14]} Na5 {[%emt 0:05:19]} 32. Nxa5 {[%emt 0:05:42]} Bxa5 {[%emt 0:00:01]} 33. Qc4 {[%emt 0:00:09]} Qxc4 {[%emt 0:01:18]} 34. dxc4 {[%emt 0:00:07]} Bd8 {[%emt 0:01:54]} 35. Ke4 {[%emt 0:00:13]} Be7 {[%emt 0:01:07]} 36. Bc1 {[%emt 0:00:05]} Kg7 {[%emt 0:00:55]} 37. Be3 {[%emt 0:00:08]} a6 {[%emt 0:01:27]} 38. f3 {[%emt 0:00:06]} Kh7 {[%emt 0:01:18]} 39. Bf2 {[%emt 0:01:00]} Kg7 {[%emt 0:00:24]} 40. Kf4 {[%emt 0:00:00]} Kh7 {[%emt 0:00:00]} 41. g4 {[%emt 0:07:56]} Kg7 {[%emt 0:16:08]} 42. Kg3 {[%emt 0:01:20]} Kh7 {[%emt 0:02:45]} 43. Be3 {[%emt 0:01:46]} Kg7 {[%emt 0:08:15]} 44. Bg1 {[%emt 0:10:11]} Kh7 {[%emt 0:00:31]} 45. Bf2 {[%emt 0:00:56]} Kh6 {[%emt 0:00:21]} 46. Be3+ {[%emt 0:03:45]} Kg7 {[%emt 0:00:01]} 47. Bd2 {[%emt 0:02:04]} Kh7 {[%emt 0:00:24]} 48. Be1 {[%emt 0:00:33]} Kg7 {[%emt 0:01:34]} 49. Kf4 {[%emt 0:00:45]} Bd8 {[%emt 0:01:52]} 50. Ke4 {[%emt 0:00:43]} hxg4 {[%emt 0:01:16]} 51. fxg4 {[%emt 0:00:09]} Be7 {[%emt 0:02:53]} 52. Bf2 {[%emt 0:01:06]} a5 {[%emt 0:01:04]} 53. Kf3 {[%emt 0:01:13]} Kh7 {[%emt 0:00:13]} 54. Kg3 {[%emt 0:00:29]} Kg7 {[%emt 0:00:10]} 55. Be3 {[%emt 0:00:09]} Kh7 {[%emt 0:00:16]} 56. Bg1 {[%emt 0:01:47]} Kg7 {[%emt 0:00:07]} 57. Bf2 {[%emt 0:00:15]} Kh7 {[%emt 0:00:09]} 58. h5 {[%emt 0:00:35]} g5 {[%emt 0:00:13]} 59. Kf3 {[%emt 0:00:17]} Kg7 {[%emt 0:00:08]} 60. Ke4 {[%emt 0:00:08]} Kh7 {[%emt 0:00:12]} 1/2-1/2

[Event "46th GRE-chT Premier 2018"]
[Site "Rio Achaia"]
[Date "2018.07.12"]
[Round "4"]
[White "Kanakaris, Georgios"]
[Black "Warakomski, Tomasz"]
[Result "0-1"]
[ECO "A09"]
[WhiteElo "2409"]
[BlackElo "2505"]
[Annotator "RC"]
[PlyCount "54"]
[EventDate "2018.07.10"]
[EventType "team-tourn"]
[EventCountry "GRE"]
[SourceTitle "playchess.com"]
[Source "ChessBase"]
[SourceQuality "1"]
[TimeControl "40/5400+30:1800+30"]

1. Nf3 {[%emt 0:00:00]} d5 {[%emt 0:00:00]} 2. c4 {[%emt 0:00:00]} d4 {[%emt 0:02:40]} 3. d3 {[%emt 0:02:14]} Nc6 {[%emt 0:03:38]} 4. g3 {[%emt 0:01:13]} e5 {[%emt 0:00:04]} 5. Bg2 {[%emt 0:00:09]} f6 {[%emt 0:05:46]} 6. O-O {[%emt 0:01:59]} Nge7 {[%emt 0:00:03]} 7. Nbd2 {[%emt 0:10:27]} Nf5 {[%emt 0:00:51]} 8. Ne4 {[%emt 0:03:49]} a5 {[%emt 0:04:54]} 9. e3 {[%emt 0:09:16]} Be7 {[%emt 0:03:38]} 10. h3 {[%emt 0:26:33]} h5 {[%emt 0:04:30]} 11. exd4 {[%emt 0:00:24]} Ncxd4 {[%emt 0:00:19]} 12. Nxd4 {[%emt 0:02:54]} Qxd4 {[%emt 0:00:05]} 13. Kh2 {[%emt 0:03:03]} Be6 {[%emt 0:03:14]} 14. f4 {[%emt 0:07:23]} O-O-O {[%emt 0:10:35]} 15. fxe5 {[%emt 0:04:53]} h4 {[%emt 0:01:14]} 16. Qf3 {[%emt 0:04:30]} Nxg3 {[%emt 0:04:26]} 17. Be3 {[%emt 0:01:23]} Nxf1+ {[%emt 0:02:51]} 18. Rxf1 {[%emt 0:00:04]} Qxb2 {[%emt 0:11:54]} 19. Nc3 {[%emt 0:02:49]} c6 {[%emt 0:02:39]} 20. Nb5 {[%emt 0:11:21]} Rxd3 {[%emt 0:22:16]} 21. Na7+ {[%emt 0:01:02]} Kc7 {[%emt 0:00:39]} 22. Nb5+ {[%emt 0:04:24]} Kd7 {[%emt 0:01:05]} 23. Rd1 {[%emt 0:00:04]} Qc2 {[%emt 0:02:53]} 24. Rxd3+ {[%emt 0:01:17]} Qxd3 {[%emt 0:00:04]} 25. Nd4 {[%emt 0:00:07]} Qxc4 {[%emt 0:00:47]} 26. exf6 {[%emt 0:00:15]} gxf6 {[%emt 0:01:21]} 27. Qd1 {[%emt 0:00:05]} Bd6+ {[%emt 0:01:17]} 0-1

[Event "46th GRE-chT Premier 2018"]
[Site "Rio Achaia"]
[Date "2018.07.12"]
[Round "4"]
[White "Szczepkowska, Karina"]
[Black "Galunova, Tsveta"]
[Result "1-0"]
[ECO "D43"]
[WhiteElo "2396"]
[BlackElo "2204"]
[Annotator "NA"]
[PlyCount "53"]
[EventDate "2018.07.10"]
[EventType "team-tourn"]
[EventCountry "GRE"]
[SourceTitle "playchess.com"]
[Source "ChessBase"]
[SourceQuality "1"]
[TimeControl "40/5400+30:1800+30"]

1. d4 {[%emt 0:00:02]} d5 {[%emt 0:00:00]} 2. Nf3 {[%emt 0:00:11]} Nf6 {[%emt 0:00:00]} 3. c4 {[%emt 0:00:04]} c6 {[%emt 0:00:09]} 4. Nc3 {[%emt 0:01:45]} e6 {[%emt 0:00:22]} 5. Qb3 {[%emt 0:00:23]} dxc4 {[%emt 0:13:27]} 6. Qxc4 {[%emt 0:00:39]} b5 {[%emt 0:02:51]} 7. Qd3 {[%emt 0:00:49]} Bb7 {[%emt 0:00:50]} 8. e4 {[%emt 0:06:02]} b4 {[%emt 0:06:27]} 9. Na4 {[%emt 0:01:37]} Qa5 {[%emt 0:03:23]} 10. b3 {[%emt 0:02:28]} Ba6 {[%emt 0:00:25]} 11. Qc2 {[%emt 0:02:18]} Bxf1 {[%emt 0:00:22]} 12. Kxf1 {[%emt 0:01:12]} Qb5+ {[%emt 0:01:13]} 13. Kg1 {[%emt 0:03:15]} Na6 {[%emt 0:21:59]} 14. Bb2 {[%emt 0:04:47]} Be7 {[%emt 0:07:26]} 15. Rc1 {[%emt 0:04:55]} Rc8 {[%emt 0:00:40]} 16. d5 {[%emt 0:01:10]} exd5 {[%emt 0:08:03]} 17. Nd4 {[%emt 0:01:11]} Qb7 {[%emt 0:00:17]} 18. exd5 {[%emt 0:01:18]} c5 {[%emt 0:07:29]} 19. d6 {[%emt 0:04:45]} Bd8 {[%emt 0:08:53]} 20. Re1+ {[%emt 0:06:55]} Kf8 {[%emt 0:00:02]} 21. Nf5 {[%emt 0:00:09]} Rc6 {[%emt 0:03:09]} 22. h4 {[%emt 0:18:49]} g6 {[%emt 0:03:20]} 23. Qd2 {[%emt 0:04:45]} h6 {[%emt 0:05:35]} 24. Ne7 {[%emt 0:05:28]} Rxd6 {[%emt 0:02:31]} 25. Qxd6 {[%emt 0:02:52]} Bxe7 {[%emt 0:00:12]} 26. Rxe7 {[%emt 0:00:21]} Qxe7 {[%emt 0:00:09]} 27. Qxf6 {[%emt 0:00:03]} 1-0

[Event "46th GRE-chT Premier 2018"]
[Site "Rio Achaia"]
[Date "2018.07.12"]
[Round "4"]
[White "Skembris, Spyridon"]
[Black "Trimitzios, Petros"]
[Result "1-0"]
[ECO "A13"]
[WhiteElo "2393"]
[BlackElo "2300"]
[Annotator "NA"]
[PlyCount "151"]
[EventDate "2018.07.10"]
[EventType "team-tourn"]
[EventCountry "GRE"]
[SourceTitle "playchess.com"]
[Source "ChessBase"]
[SourceQuality "1"]
[TimeControl "40/5400+30:1800+30"]

1. c4 {[%emt 0:02:49]} e6 {[%emt 0:00:04]} 2. g3 {[%emt 0:00:19]} d5 {[%emt 0:00:45]} 3. Bg2 {[%emt 0:00:09]} dxc4 {[%emt 0:00:41]} 4. Qa4+ {[%emt 0:00:39]} c6 {[%emt 0:00:31]} 5. Qxc4 {[%emt 0:00:09]} Nf6 {[%emt 0:00:09]} 6. b3 {[%emt 0:00:25]} Be7 {[%emt 0:01:38]} 7. Bb2 {[%emt 0:00:09]} O-O {[%emt 0:00:13]} 8. Nf3 {[%emt 0:00:15]} b5 {[%emt 0:01:35]} 9. Qc2 {[%emt 0:00:13]} Bb7 {[%emt 0:00:09]} 10. O-O {[%emt 0:03:57]} Nbd7 {[%emt 0:01:12]} 11. Nc3 {[%emt 0:00:23]} a6 {[%emt 0:00:29]} 12. Ne4 {[%emt 0:01:20]} Nxe4 {[%emt 0:08:49]} 13. Qxe4 {[%emt 0:01:20]} Nf6 {[%emt 0:01:20]} 14. Qc2 {[%emt 0:00:27]} c5 {[%emt 0:00:20]} 15. Ng5 {[%emt 0:01:41]} Bxg2 {[%emt 0:04:05]} 16. Bxf6 {[%emt 0:00:12]} g6 {[%emt 0:00:08]} 17. Nxe6 {[%emt 0:02:34]} fxe6 {[%emt 0:18:39]} 18. Bxe7 {[%emt 0:00:19]} Qxe7 {[%emt 0:03:20]} 19. Kxg2 {[%emt 0:00:04]} Rac8 {[%emt 0:00:21]} 20. Qe4 {[%emt 0:01:17]} Rfd8 {[%emt 0:04:44]} 21. d3 {[%emt 0:00:08]} Rd4 {[%emt 0:01:09]} 22. Qe3 {[%emt 0:01:10]} e5 {[%emt 0:02:10]} 23. Rac1 {[%emt 0:01:31]} Qe6 {[%emt 0:04:51]} 24. f3 {[%emt 0:00:29]} Qd6 {[%emt 0:08:54]} 25. Rc2 {[%emt 0:00:19]} Rc7 {[%emt 0:03:20]} 26. Rfc1 {[%emt 0:00:10]} Kg7 {[%emt 0:00:09]} 27. Rc3 {[%emt 0:01:51]} h6 {[%emt 0:03:29]} 28. h4 {[%emt 0:03:20]} Qd5 {[%emt 0:03:08]} 29. R1c2 {[%emt 0:00:23]} b4 {[%emt 0:15:22]} 30. Rc4 {[%emt 0:01:22]} a5 {[%emt 0:00:12]} 31. Qc1 {[%emt 0:00:27]} Rxc4 {[%emt 0:00:02]} 32. Rxc4 {[%emt 0:00:15]} Qd6 {[%emt 0:00:28]} 33. Qe3 {[%emt 0:00:31]} Qd5 {[%emt 0:04:38]} 34. Kh2 {[%emt 0:00:12]} Rc6 {[%emt 0:00:47]} 35. Kg1 {[%emt 0:05:40]} Rc8 {[%emt 0:02:02]} 36. f4 {[%emt 0:04:28]} exf4 {[%emt 0:00:14]} 37. Qe7+ {[%emt 0:01:30]} Qf7 {[%emt 0:00:57]} 38. Qxf7+ {[%emt 0:03:03]} Kxf7 {[%emt 0:00:03]} 39. Rxf4+ {[%emt 0:00:07]} Ke6 {[%emt 0:00:11]} 40. Rc4 {[%emt 0:00:00]} Kd7 {[%emt 0:00:00]} 41. Kf2 {[%emt 0:01:50]} Ke6 {[%emt 0:08:52]} 42. Ke1 {[%emt 0:01:04]} Kd5 {[%emt 0:10:02]} 43. d4 {[%emt 0:01:21]} Ra8 {[%emt 0:03:01]} 44. dxc5 {[%emt 0:00:10]} Kc6 {[%emt 0:00:05]} 45. e3 {[%emt 0:02:21]} Re8 {[%emt 0:01:50]} 46. Ke2 {[%emt 0:00:16]} g5 {[%emt 0:00:14]} 47. Kd3 {[%emt 0:02:50]} Rf8 {[%emt 0:00:32]} 48. hxg5 {[%emt 0:04:23]} hxg5 {[%emt 0:00:02]} 49. Re4 {[%emt 0:14:03]} Rf2 {[%emt 0:01:36]} 50. a4 {[%emt 0:30:57]} bxa3 {[%emt 0:01:43]} 51. Ra4 {[%emt 0:00:07]} Kxc5 {[%emt 0:00:20]} 52. Rxa3 {[%emt 0:00:18]} Kb5 {[%emt 0:00:13]} 53. Ra4 {[%emt 0:00:16]} Rf5 {[%emt 0:03:30]} 54. g4 {[%emt 0:00:55]} Rf1 {[%emt 0:03:42]} 55. Re4 {[%emt 0:01:09]} Rb1 {[%emt 0:01:48]} 56. Kc3 {[%emt 0:05:00]} Rc1+ {[%emt 0:01:11]} 57. Kd2 {[%emt 0:02:05]} Rg1 {[%emt 0:02:01]} 58. Re5+ {[%emt 0:00:28]} Kb4 {[%emt 0:00:05]} 59. Rxg5 {[%emt 0:00:15]} Kxb3 {[%emt 0:00:02]} 60. Rxa5 {[%emt 0:00:15]} Rxg4 {[%emt 0:00:03]} 61. Kd3 {[%emt 0:00:19]} Kb4 {[%emt 0:00:51]} 62. Rd5 {[%emt 0:00:16]} Rg8 {[%emt 0:01:24]} 63. Kd4 {[%emt 0:00:26]} Rg1 {[%emt 0:01:03]} 64. e4 {[%emt 0:00:18]} Rd1+ {[%emt 0:00:46]} 65. Ke5 {[%emt 0:00:11]} Rh1 {[%emt 0:00:38]} 66. Rd7 {[%emt 0:03:20]} Kc5 {[%emt 0:02:04]} 67. Rc7+ {[%emt 0:00:24]} Kb6 {[%emt 0:00:06]} 68. Rc2 {[%emt 0:00:20]} Rh8 {[%emt 0:01:08]} 69. Kf6 {[%emt 0:03:34]} Rf8+ {[%emt 0:00:58]} 70. Ke7 {[%emt 0:00:14]} Rf4 {[%emt 0:00:07]} 71. e5 {[%emt 0:00:06]} Re4 {[%emt 0:01:51]} 72. e6 {[%emt 0:00:08]} Kb7 {[%emt 0:00:23]} 73. Kd7 {[%emt 0:00:40]} Rd4+ {[%emt 0:00:41]} 74. Ke8 {[%emt 0:00:09]} Re4 {[%emt 0:00:09]} 75. e7 {[%emt 0:00:14]} Re1 {[%emt 0:00:07]} 76. Rf2 {[%emt 0:01:15]} 1-0

[Event "46th GRE-chT Premier 2018"]
[Site "Rio Achaia"]
[Date "2018.07.12"]
[Round "4"]
[White "Tomici, Stefan"]
[Black "Papadopoulos, Georgios"]
[Result "0-1"]
[ECO "C55"]
[WhiteElo "2369"]
[BlackElo "2352"]
[Annotator "NA"]
[PlyCount "88"]
[EventDate "2018.07.10"]
[EventType "team-tourn"]
[EventCountry "GRE"]
[SourceTitle "playchess.com"]
[Source "ChessBase"]
[SourceQuality "1"]
[TimeControl "40/5400+30:1800+30"]

1. e4 {[%emt 0:00:00]} e5 {[%emt 0:00:00]} 2. Nf3 {[%emt 0:00:07]} Nc6 {[%emt 0:00:00]} 3. Bc4 {[%emt 0:00:23]} Nf6 {[%emt 0:00:01]} 4. d3 {[%emt 0:01:52]} Be7 {[%emt 0:00:08]} 5. O-O {[%emt 0:02:08]} O-O {[%emt 0:00:07]} 6. Bb3 {[%emt 0:00:58]} d6 {[%emt 0:09:16]} 7. c3 {[%emt 0:08:46]} Na5 {[%emt 0:07:16]} 8. Bc2 {[%emt 0:04:31]} c5 {[%emt 0:01:49]} 9. h3 {[%emt 0:07:37]} b5 {[%emt 0:07:02]} 10. Re1 {[%emt 0:08:36]} Qc7 {[%emt 0:01:14]} 11. Nbd2 {[%emt 0:07:58]} Be6 {[%emt 0:01:47]} 12. Nf1 {[%emt 0:06:43]} Rad8 {[%emt 0:01:09]} 13. Qe2 {[%emt 0:17:39]} Nc6 {[%emt 0:22:17]} 14. Ng5 {[%emt 0:09:01]} Bc8 {[%emt 0:02:20]} 15. f4 {[%emt 0:00:50]} b4 {[%emt 0:18:31]} 16. Nf3 {[%emt 0:06:12]} bxc3 {[%emt 0:02:00]} 17. bxc3 {[%emt 0:00:29]} Qa5 {[%emt 0:03:03]} 18. c4 {[%emt 0:10:27]} Nh5 {[%emt 0:03:20]} 19. f5 {[%emt 0:01:13]} Nf4 {[%emt 0:01:33]} 20. Qd2 {[%emt 0:01:11]} Qxd2 {[%emt 0:01:54]} 21. Bxd2 {[%emt 0:00:05]} g6 {[%emt 0:00:49]} 22. Ne3 {[%emt 0:01:53]} Nd4 {[%emt 0:03:19]} 23. Nxd4 {[%emt 0:00:37]} cxd4 {[%emt 0:00:17]} 24. Ng4 {[%emt 0:00:17]} Bg5 {[%emt 0:03:32]} 25. Ba5 {[%emt 0:01:04]} Rd7 {[%emt 0:03:26]} 26. g3 {[%emt 0:00:47]} Nxh3+ {[%emt 0:00:45]} 27. Kg2 {[%emt 0:00:13]} gxf5 {[%emt 0:00:22]} 28. Nh2 {[%emt 0:01:21]} fxe4 {[%emt 0:01:10]} 29. Kxh3 {[%emt 0:00:20]} Rb7+ {[%emt 0:00:11]} 30. Kg2 {[%emt 0:00:28]} Rb2 {[%emt 0:01:04]} 31. Re2 {[%emt 0:00:41]} Bb7 {[%emt 0:00:29]} 32. Kf1 {[%emt 0:00:48]} f5 {[%emt 0:00:36]} 33. Bb3 {[%emt 0:00:37]} Rxe2 {[%emt 0:00:28]} 34. Kxe2 {[%emt 0:00:11]} exd3+ {[%emt 0:00:41]} 35. Kxd3 {[%emt 0:00:27]} e4+ {[%emt 0:00:14]} 36. Ke2 {[%emt 0:00:19]} d3+ {[%emt 0:00:26]} 37. Ke1 {[%emt 0:00:12]} f4 {[%emt 0:00:34]} 38. gxf4 {[%emt 0:01:02]} Bxf4 {[%emt 0:01:24]} 39. Ng4 {[%emt 0:00:46]} e3 {[%emt 0:00:26]} 40. c5+ {[%emt 0:00:00]} Kg7 {[%emt 0:00:00]} 41. Nxe3 {[%emt 0:08:09]} Bxe3 {[%emt 0:01:51]} 42. Bc3+ {[%emt 0:01:45]} Kg6 {[%emt 0:00:47]} 43. Bc4 {[%emt 0:00:08]} Be4 {[%emt 0:04:30]} 44. cxd6 {[%emt 0:09:54]} Rf2 {[%emt 0:01:09]} 0-1

[Event "46th GRE-chT Premier 2018"]
[Site "Rio Achaia"]
[Date "2018.07.12"]
[Round "4"]
[White "Videnova, Iva"]
[Black "Fragkou, Eleni"]
[Result "0-1"]
[ECO "B97"]
[WhiteElo "2369"]
[BlackElo "1979"]
[Annotator "NA"]
[PlyCount "102"]
[EventDate "2018.07.10"]
[EventType "team-tourn"]
[EventCountry "GRE"]
[SourceTitle "playchess.com"]
[Source "ChessBase"]
[SourceQuality "1"]
[TimeControl "40/5400+30:1800+30"]

1. e4 {[%emt 0:00:00]} c5 {[%emt 0:00:00]} 2. Nf3 {[%emt 0:00:00]} d6 {[%emt 0:00:00]} 3. d4 {[%emt 0:00:00]} cxd4 {[%emt 0:00:00]} 4. Nxd4 {[%emt 0:00:00]} Nf6 {[%emt 0:00:04]} 5. Nc3 {[%emt 0:00:00]} a6 {[%emt 0:00:06]} 6. Bg5 {[%emt 0:00:02]} e6 {[%emt 0:00:07]} 7. f4 {[%emt 0:00:04]} Qb6 {[%emt 0:00:08]} 8. Nb3 {[%emt 0:00:07]} Nbd7 {[%emt 0:00:22]} 9. Qe2 {[%emt 0:03:16]} Qc7 {[%emt 0:03:58]} 10. O-O-O {[%emt 0:00:23]} b5 {[%emt 0:02:33]} 11. a3 {[%emt 0:00:41]} Bb7 {[%emt 0:02:37]} 12. g4 {[%emt 0:04:22]} Be7 {[%emt 0:03:53]} 13. Bg2 {[%emt 0:00:45]} O-O-O {[%emt 0:22:28]} 14. Nd4 {[%emt 0:19:34]} Nb6 {[%emt 0:06:53]} 15. Bh4 {[%emt 0:11:09]} Nc4 {[%emt 0:10:00]} 16. a4 {[%emt 0:16:24]} bxa4 {[%emt 0:07:14]} 17. Nxa4 {[%emt 0:00:32]} Kb8 {[%emt 0:07:20]} 18. b3 {[%emt 0:01:58]} Nb6 {[%emt 0:09:27]} 19. Nxb6 {[%emt 0:00:38]} Qxb6 {[%emt 0:00:07]} 20. Kb2 {[%emt 0:02:22]} Rc8 {[%emt 0:06:34]} 21. Bf2 {[%emt 0:03:41]} Qb4 {[%emt 0:01:19]} 22. c4 {[%emt 0:01:51]} d5 {[%emt 0:01:12]} 23. Nc2 {[%emt 0:00:35]} Qa5 {[%emt 0:02:32]} 24. exd5 {[%emt 0:00:58]} Nxd5 {[%emt 0:01:41]} 25. cxd5 {[%emt 0:05:11]} Qc3+ {[%emt 0:00:12]} 26. Ka2 {[%emt 0:10:11]} Qxc2+ {[%emt 0:00:06]} 27. Qxc2 {[%emt 0:00:21]} Rxc2+ {[%emt 0:00:06]} 28. Kb1 {[%emt 0:00:30]} Rxf2 {[%emt 0:00:12]} 29. d6 {[%emt 0:00:44]} Bf6 {[%emt 0:01:41]} 30. Bxb7 {[%emt 0:00:53]} Kxb7 {[%emt 0:00:06]} 31. g5 {[%emt 0:00:31]} Bc3 {[%emt 0:02:46]} 32. Rd3 {[%emt 0:06:32]} Ba5 {[%emt 0:02:41]} 33. Rd4 {[%emt 0:01:41]} Rd8 {[%emt 0:01:17]} 34. Rhd1 {[%emt 0:00:55]} Rxh2 {[%emt 0:00:55]} 35. f5 {[%emt 0:00:20]} exf5 {[%emt 0:01:09]} 36. Rd5 {[%emt 0:00:29]} Bb6 {[%emt 0:02:20]} 37. Rxf5 {[%emt 0:00:27]} Rd7 {[%emt 0:00:45]} 38. Rdf1 {[%emt 0:03:53]} Rd2 {[%emt 0:00:12]} 39. Rxf7 {[%emt 0:00:33]} R2xd6 {[%emt 0:00:05]} 40. Rf8 {[%emt 0:00:00]} Rd1+ {[%emt 0:00:00]} 41. Rxd1 {[%emt 0:02:35]} Rxd1+ {[%emt 0:02:23]} 42. Kc2 {[%emt 0:00:05]} Rd7 {[%emt 0:00:14]} 43. Rh8 {[%emt 0:00:29]} Be3 {[%emt 0:00:14]} 44. Rxh7 {[%emt 0:00:12]} Bxg5 {[%emt 0:00:06]} 45. Rh5 {[%emt 0:00:18]} Bf6 {[%emt 0:00:16]} 46. b4 {[%emt 0:00:15]} g5 {[%emt 0:01:01]} 47. Rh6 {[%emt 0:00:16]} Be5 {[%emt 0:00:31]} 48. Re6 {[%emt 0:00:15]} Bd4 {[%emt 0:05:56]} 49. Kd3 {[%emt 0:03:07]} g4 {[%emt 0:01:11]} 50. Re4 {[%emt 0:01:40]} g3 {[%emt 0:00:31]} 51. Ke2 {[%emt 0:00:40]} g2 {[%emt 0:00:19]} 0-1

[Event "46th GRE-chT Premier 2018"]
[Site "Rio Achaia"]
[Date "2018.07.12"]
[Round "4"]
[White "Galopoulos, Nikolaos"]
[Black "Kazantzidis, Ilias"]
[Result "1-0"]
[ECO "A06"]
[WhiteElo "2351"]
[BlackElo "2182"]
[Annotator "NA"]
[PlyCount "59"]
[EventDate "2018.07.10"]
[EventType "team-tourn"]
[EventCountry "GRE"]
[SourceTitle "playchess.com"]
[Source "ChessBase"]
[SourceQuality "1"]
[TimeControl "40/5400+30:1800+30"]

1. Nf3 {[%emt 0:00:00]} d5 {[%emt 0:00:06]} 2. c4 {[%emt 0:00:00]} e6 {[%emt 0:03:44]} 3. d4 {[%emt 0:00:13]} dxc4 {[%emt 0:00:15]} 4. e4 {[%emt 0:03:09]} Nf6 {[%emt 0:05:25]} 5. e5 {[%emt 0:08:07]} Nd5 {[%emt 0:00:38]} 6. Bxc4 {[%emt 0:00:03]} Be7 {[%emt 0:08:22]} 7. O-O {[%emt 0:00:36]} O-O {[%emt 0:00:35]} 8. Nbd2 {[%emt 0:00:42]} b6 {[%emt 0:05:24]} 9. Ne4 {[%emt 0:00:04]} Ba6 {[%emt 0:06:21]} 10. b3 {[%emt 0:00:16]} b5 {[%emt 0:03:54]} 11. Bd3 {[%emt 0:00:37]} h6 {[%emt 0:12:41]} 12. Qe2 {[%emt 0:04:31]} Nb4 {[%emt 0:15:59]} 13. Bb1 {[%emt 0:00:30]} Nd7 {[%emt 0:14:02]} 14. a3 {[%emt 0:04:12]} Nd5 {[%emt 0:00:29]} 15. Qc2 {[%emt 0:00:06]} g6 {[%emt 0:05:23]} 16. Bxh6 {[%emt 0:00:06]} b4 {[%emt 0:01:25]} 17. Bxf8 {[%emt 0:00:40]} Qxf8 {[%emt 0:00:37]} 18. Rc1 {[%emt 0:04:01]} bxa3 {[%emt 0:09:50]} 19. Nc5 {[%emt 0:01:10]} Nxc5 {[%emt 0:01:25]} 20. dxc5 {[%emt 0:00:05]} Nf4 {[%emt 0:01:36]} 21. Kh1 {[%emt 0:00:10]} Nd3 {[%emt 0:01:11]} 22. Rxa3 {[%emt 0:03:29]} Nxc1 {[%emt 0:01:03]} 23. Rxa6 {[%emt 0:00:05]} Qh6 {[%emt 0:00:22]} 24. h3 {[%emt 0:00:38]} Rb8 {[%emt 0:00:37]} 25. Nd4 {[%emt 0:00:29]} Qf4 {[%emt 0:00:30]} 26. Nc6 {[%emt 0:00:31]} Bh4 {[%emt 0:00:33]} 27. Ra4 {[%emt 0:00:18]} Qg5 {[%emt 0:00:31]} 28. Nxb8 {[%emt 0:00:12]} Bg3 {[%emt 0:00:24]} 29. fxg3 {[%emt 0:00:27]} Qe3 {[%emt 0:00:25]} 30. Re4 {[%emt 0:00:26]} 1-0

[Event "46th GRE-chT Premier 2018"]
[Site "Rio Achaia"]
[Date "2018.07.12"]
[Round "4"]
[White "Kalogeris, Ioannis"]
[Black "Kouskoutis, Georgios-Alexandros"]
[Result "1-0"]
[ECO "E06"]
[WhiteElo "2339"]
[BlackElo "2307"]
[Annotator "NA"]
[PlyCount "121"]
[EventDate "2018.07.10"]
[EventType "team-tourn"]
[EventCountry "GRE"]
[SourceTitle "playchess.com"]
[Source "ChessBase"]
[SourceQuality "1"]
[TimeControl "40/5400+30:1800+30"]

1. d4 Nf6 2. Nf3 e6 3. c4 d5 4. g3 Be7 5. Bg2 O-O 6. O-O c6 7. Nbd2 b6 8. Qc2 Bb7 9. e4 Na6 10. e5 Nd7 11. a3 Nc7 12. Rd1 Rc8 13. b4 c5 14. dxc5 bxc5 15. b5 Ba8 16. a4 Qe8 17. Bb2 a6 18. Rab1 dxc4 19. Nxc4 axb5 20. Nd6 Qd8 21. Nxc8 Qxc8 22. axb5 Nxb5 23. Qd3 Bc6 24. Ng5 Bxg5 25. Bxc6 Qxc6 26. Qxd7 Qa6 27. Bc1 Bxc1 28. Qxb5 Qxb5 29. Rxb5 Ba3 30. Rd7 g6 31. Rdb7 Bb4 32. Rb8 Rxb8 33. Rxb8+ Kg7 34. Rc8 g5 35. g4 h6 36. Kg2 Ba3 37. Kf3 Bb4 38. Ke4 Be1 39. Ke3 Bb4 40. Kd3 Be1 41. Ke2 Bb4 42. f3 Kg6 43. h3 Kg7 44. Kd3 Kg6 45. Kc4 Kh7 46. Kb5 Bc3 47. Kxc5 Bxe5 48. Kc6 Kg6 49. Kd7 Bb2 50. Rg8+ Kf6 51. Ra8 Kg6 52. Ke7 Bf6+ 53. Kf8 Bd4 54. Rc8 Bb2 55. Rc7 Ba3+ 56. Kg8 f5 57. Rc6 Kf6 58. Kh7 fxg4 59. hxg4 Bf8 60. Rc8 Kf7 61. Rxf8+ 1-0

[Event "46th GRE-chT Premier 2018"]
[Site "Rio Achaia"]
[Date "2018.07.12"]
[Round "4"]
[White "Papakonstantinou, Dimitrios"]
[Black "Pavlidis, Anastasios"]
[Result "1/2-1/2"]
[ECO "B06"]
[WhiteElo "2336"]
[BlackElo "2362"]
[Annotator "NA"]
[PlyCount "37"]
[EventDate "2018.07.10"]
[EventType "team-tourn"]
[EventCountry "GRE"]
[SourceTitle "playchess.com"]
[Source "ChessBase"]
[SourceQuality "1"]
[TimeControl "40/5400+30:1800+30"]

1. e4 {[%emt 0:00:00]} g6 {[%emt 0:00:18]} 2. d4 {[%emt 0:00:00]} Bg7 {[%emt 0:00:20]} 3. Nc3 {[%emt 0:00:36]} c6 {[%emt 0:01:10]} 4. Bc4 {[%emt 0:03:46]} d6 {[%emt 0:02:21]} 5. Nf3 {[%emt 0:03:25]} Nf6 {[%emt 0:00:35]} 6. Bb3 {[%emt 0:03:12]} O-O {[%emt 0:12:46]} 7. Bg5 {[%emt 0:02:17]} d5 {[%emt 0:10:18]} 8. Qe2 {[%emt 0:14:43]} dxe4 {[%emt 0:03:02]} 9. Nxe4 {[%emt 0:00:07]} Nxe4 {[%emt 0:09:12]} 10. Qxe4 {[%emt 0:00:13]} Bf5 {[%emt 0:00:19]} 11. Qh4 {[%emt 0:06:56]} Nd7 {[%emt 0:02:03]} 12. O-O {[%emt 0:06:50]} Nf6 {[%emt 0:01:04]} 13. Rfe1 {[%emt 0:01:04]} a5 {[%emt 0:07:37]} 14. a4 {[%emt 0:01:11]} Qd6 {[%emt 0:11:14]} 15. Bf4 {[%emt 0:04:29]} Qb4 {[%emt 0:01:29]} 16. Bd2 {[%emt 0:00:35]} Qd6 {[%emt 0:00:20]} 17. Bf4 {[%emt 0:02:22]} Qb4 {[%emt 0:00:36]} 18. Bd2 {[%emt 0:07:39]} Qd6 {[%emt 0:00:49]} 19. Bf4 1/2-1/2